fUSD/lending_fUSD_20251130
["ID","MTS","AMOUNT","RATE_DAILY","PERIOD"]
[395153140,1764486640637,-500.0,0.00014384,2]
[395153141,1764486640647,-500.0,0.00014384,2]
[395153142,1764486640656,-500.0,0.00014384,2]
[395153143,1764486640665,-729.0,0.00014485,2]
[395153144,1764486640675,-500.0,0.00014485,2]
[395153145,1764486640684,-10571.07,0.00014498,2]
[395153146,1764486640693,-19434.36,0.00014504,2]
[395153147,1764486640702,-8906.68,0.00014504,2]
[395153148,1764486640711,-1600.0,0.00014516,2]
[395153149,1764486640720,-151.0,0.00014521,2]
[395153150,1764486640729,-483.0,0.00014521,2]
[395153151,1764486640738,-500.0,0.00014521,2]
[395153152,1764486640747,-500.0,0.00014521,2]
[395153153,1764486640756,-500.0,0.00014521,2]
[395153154,1764486640765,-558.23,0.00014528,2]
[395153155,1764486640774,-195.0,0.00014558,2]
[395153156,1764486640783,-281.90988596,0.00014558,2]
[395153157,1764486640792,-300.0,0.00014558,2]
[395153158,1764486640801,-300.0,0.00014558,2]
[395153159,1764486640811,-150.39058857,0.00014558,2]
[395153160,1764486640821,-195.0,0.00014558,2]
[395153161,1764486640830,-195.0,0.00014558,2]
[395153162,1764486640839,-250.0,0.00014558,2]
[395153163,1764486640848,-195.0,0.00014558,2]
[395153164,1764486640858,-195.0,0.00014558,2]
[395153165,1764486640867,-729.0,0.00014622,2]
[395153166,1764486640876,-296.85092303,0.00014622,2]
[395153167,1764486640886,-483.0,0.00014658,2]
[395153168,1764486640895,-217.04067786,0.00014658,2]
[395153169,1764486640904,-500.0,0.00014658,2]
[395153170,1764486640914,-500.0,0.00014658,2]
[395153171,1764486640924,-11902.982583,0.00014705,2]
[395153172,1764486640933,-729.0,0.00014759,2]
[395153173,1764486640942,-224.90084816,0.00014778,2]
[395153174,1764486640951,-483.0,0.00014795,2]
[395153175,1764486640961,-500.0,0.00014795,2]
[395153176,1764486640970,-500.0,0.00014795,2]
[395153177,1764486640979,-420.0,0.00014803,2]
[395153178,1764486640989,-420.0,0.00014803,2]
[395153179,1764486640998,-1680.0,0.00014856,2]
[395153180,1764486641007,-729.0,0.00014896,2]
[395153181,1764486641016,-483.0,0.00014932,2]
[395153182,1764486641026,-500.0,0.00014932,2]
[395153183,1764486641035,-500.0,0.00014932,2]
[395153184,1764486641044,-729.0,0.00015033,2]
[395153185,1764486641053,-156.75181041,0.00015068,2]
[395153186,1764486641063,-151.0,0.00015069,2]
[395153187,1764486641072,-483.0,0.00015069,2]
[395153188,1764486641081,-500.0,0.00015069,2]
[395153189,1764486641090,-500.0,0.00015069,2]
[395153190,1764486641099,-11902.982583,0.00015071,2]
[395153191,1764486641109,-729.0,0.0001517,2]
[395153192,1764486641118,-483.0,0.00015206,2]
[395153193,1764486641127,-500.0,0.00015206,2]
[395153194,1764486641136,-500.0,0.00015206,2]
[395153195,1764486641145,-150.0,0.00015288,2]
[395153196,1764486641154,-150.0,0.00015288,2]
[395153197,1764486641163,-150.0,0.00015288,2]
[395153198,1764486641172,-150.0,0.00015288,2]
[395153199,1764486641182,-150.0,0.00015288,2]
[395153200,1764486641191,-150.0,0.00015288,2]
[395153201,1764486641201,-151.04072084,0.00015288,2]
[395153202,1764486641210,-150.0,0.00015288,2]
[395153203,1764486641220,-150.0,0.00015288,2]
[395153204,1764486641229,-150.0,0.00015288,2]
[395153205,1764486641238,-245.89851421,0.00015288,2]
[395153206,1764486641247,-150.0,0.00015288,2]
[395153207,1764486641257,-150.0,0.00015288,2]
[395153208,1764486641266,-729.0,0.00015307,2]
[395153209,1764486641275,-500.0,0.00015309,2]
[395153210,1764486641283,-500.0,0.00015309,2]
[395153211,1764486641293,-500.0,0.00015309,2]
[395153212,1764486641302,-500.0,0.00015309,2]
[395153213,1764486641311,-500.0,0.00015309,2]
[395153214,1764486641320,-500.0,0.00015309,2]
[395153215,1764486641329,-556.83585957,0.00015309,2]
[395153216,1764486641338,-483.0,0.00015343,2]
[395153217,1764486641347,-500.0,0.00015343,2]
[395153218,1764486641357,-500.0,0.00015343,2]
[395153219,1764486641366,-150.0,0.00015356,2]
[395153220,1764486641375,-150.0,0.00015373,2]
[395153221,1764486641384,-150.0,0.00015401,2]
[395153222,1764486641393,-150.0,0.00015418,2]
[395153223,1764486641403,-150.0,0.00015424,2]
[395153224,1764486641412,-150.0,0.00015429,2]
[395153225,1764486641421,-11902.982583,0.00015436,2]
[395153226,1764486641430,-729.0,0.00015444,2]
[395153227,1764486641439,-150.0,0.00015458,2]
[395153228,1764486641448,-150.0,0.00015458,2]
[395153229,1764486641457,-483.0,0.0001548,2]
[395153230,1764486641466,-500.0,0.0001548,2]
[395153231,1764486641475,-500.0,0.0001548,2]
[395153232,1764486641487,-150.0,0.00015492,2]
[395153233,1764486641496,-150.0,0.00015514,2]
[395153234,1764486641505,-150.0,0.00015542,2]
[395153235,1764486641514,-150.0,0.00015549,2]
[395153236,1764486641523,-222.23133542,0.00015557,2]
[395153237,1764486641532,-150.0,0.00015559,2]
[395153238,1764486641541,-9427.0,0.00015567,2]
[395153239,1764486641550,-150.0,0.00015571,2]
[395153240,1764486641562,-729.0,0.00015581,2]
[395153241,1764486641571,-151.0,0.00015617,2]
[395153242,1764486641580,-483.0,0.00015617,2]
[395153243,1764486641588,-500.0,0.00015617,2]
[395153244,1764486641597,-461.93375674,0.00015617,2]
[395153245,1764486641606,-500.0,0.00015624,2]
[395153247,1764486641616,-150.0,0.00015627,2]
[395153248,1764486641624,-150.0,0.00015627,2]
[395153249,1764486641633,-150.0,0.00015627,2]
[395153250,1764486641642,-150.0,0.00015627,2]
[395153251,1764486641651,-150.0,0.0001568,2]
[395153252,1764486641659,-150.0,0.00015695,2]
[395153253,1764486641668,-150.0,0.00015712,2]
[395153254,1764486641677,-150.0,0.00015712,2]
[395153255,1764486641686,-150.0,0.00015712,2]
[395153256,1764486641695,-150.0,0.00015712,2]
[395153257,1764486641704,-729.0,0.00015718,2]
[395153258,1764486641713,-150.0,0.00015741,2]
[395153259,1764486641721,-483.0,0.00015754,2]
[395153260,1764486641730,-500.0,0.00015754,2]
[395153261,1764486641739,-414.77797921,0.00015763,2]
[395153262,1764486641748,-150.0,0.00015763,2]
[395153263,1764486641757,-150.0,0.00015797,2]
[395153264,1764486641765,-150.0,0.00015797,2]
[395153265,1764486641774,-11902.982583,0.00015802,2]
[395153266,1764486641783,-150.0,0.0001581,2]
[395153267,1764486641792,-150.0,0.00015831,2]
[395153268,1764486641801,-150.0,0.00015854,2]
[395153269,1764486641810,-150.0,0.00015854,2]
[395153270,1764486641819,-729.0,0.00015855,2]
[395153271,1764486641829,-150.0,0.00015882,2]
[395153272,1764486641838,-483.0,0.00015891,2]
[395153273,1764486641847,-587.79826492,0.00015891,2]
[395153274,1764486641856,-150.0,0.00015899,2]
[395153275,1764486641866,-921.37103444,0.000159,2]
[395153276,1764486641875,-921.37103441,0.000159,2]
[395153277,1764486641884,-921.37103441,0.000159,2]
[395153278,1764486641893,-150.0,0.00015941,2]
[395153279,1764486641902,-150.0,0.00015967,2]
[395153280,1764486641911,-150.0,0.00015967,2]
[395153281,1764486641921,-150.0,0.00015967,2]
[395153282,1764486641930,-150.0,0.00015967,2]
[395153283,1764486641940,-168.83814577,0.00015973,2]
[395153284,1764486641949,-500.0,0.00015973,2]
[395153285,1764486641958,-500.67033619,0.00015973,2]
[395153286,1764486641967,-500.0,0.00015973,2]
[395153287,1764486641976,-500.0,0.00015973,2]
[395153288,1764486641985,-500.0,0.00015973,2]
[395153289,1764486641995,-176.19485435,0.00015973,2]
[395153290,1764486642004,-503.30230408,0.00015973,2]
[395153291,1764486642013,-500.0,0.00015973,2]
[395153292,1764486642023,-165.08638781,0.00015973,2]
[395153293,1764486642033,-500.0,0.00015973,2]
[395153294,1764486642042,-500.0,0.00015973,2]
[395153295,1764486642343,-161.07388452,0.00015973,2]
[395153296,1764486642353,-504.72891622,0.00015973,2]
[395153297,1764486642363,-215.69681959,0.00015973,2]
[395153298,1764486642372,-500.21383285,0.00015973,2]
[395153299,1764486642382,-160.04783372,0.00015973,2]
[395153300,1764486642391,-500.88533786,0.00015973,2]
[395153301,1764486642400,-545.80271006,0.00015973,2]
[395153302,1764486642409,-500.0,0.00015973,2]
[395153303,1764486642419,-316.03350375,0.00015973,2]
[395153304,1764486642428,-151.85572149,0.00015973,2]
[395153305,1764486642438,-500.0,0.00015973,2]
[395153306,1764486642447,-500.0,0.00015973,2]
[395153307,1764486642456,-500.0,0.00015973,2]
[395153308,1764486642465,-201.11548058,0.00015973,2]
[395153309,1764486642475,-500.0,0.00015973,2]
[395153310,1764486642488,-500.0,0.00015973,2]
[395153311,1764486642498,-622.74851177,0.00015973,2]
[395153312,1764486642507,-500.0,0.00015973,2]
[395153313,1764486642516,-160.07187961,0.00015973,2]
[395153314,1764486642525,-500.0,0.00015973,2]
[395153315,1764486642535,-882.62,0.00015973,2]
[395153316,1764486642544,-729.0,0.00015992,2]
[395153317,1764486642553,-150.0,0.00015995,2]
[395153318,1764486642562,-483.0,0.00016028,2]
[395153319,1764486642571,-150.0,0.00016035,2]
[395153320,1764486642580,-150.0,0.00016052,2]
[395153321,1764486642590,-150.0,0.00016072,2]
[395153322,1764486642599,-150.0,0.0001608,2]
[395153323,1764486642608,-512.38673853,0.00016084,2]
[395153324,1764486642618,-500.0,0.00016084,2]
[395153325,1764486642628,-150.0,0.00016103,2]
[395153326,1764486642637,-729.0,0.00016129,2]
[395153327,1764486642646,-1600.0,0.00016129,2]
[395153328,1764486642655,-150.0,0.00016137,2]
[395153329,1764486642664,-150.0,0.00016137,2]
[395153330,1764486642674,-150.0,0.00016137,2]
[395153331,1764486642683,-150.0,0.00016137,2]
[395153332,1764486642694,-150.0,0.00016137,2]
[395153333,1764486642703,-150.0,0.00016137,2]
[395153334,1764486642713,-208.75,0.00016145,2]
[395153335,1764486642722,-183.05840034,0.00016148,2]
[395153336,1764486642731,-522.79968162,0.00016148,2]
[395153337,1764486642742,-500.0,0.00016148,2]
[395153338,1764486642751,-500.0,0.00016148,2]
[395153339,1764486642760,-524.40679433,0.00016148,2]
[395153340,1764486642770,-500.0,0.00016148,2]
[395153341,1764486642781,-173.88347713,0.00016148,2]
[395153342,1764486642791,-322.6107,0.00016149,2]
[395153343,1764486642800,-151.96835927,0.00016149,2]
[395153344,1764486642809,-578.20924308,0.00016149,2]
[395153345,1764486642819,-250.0,0.00016149,2]
[395153346,1764486642829,-8000.0,0.00016149,2]
[395153347,1764486642839,-151.0,0.00016149,2]
[395153348,1764486642848,-250.0,0.00016149,2]
[395153349,1764486642858,-151.0,0.00016149,2]
[395153350,1764486642868,-8000.0,0.00016149,2]
[395153351,1764486642877,-250.0,0.00016149,2]
[395153352,1764486642887,-8000.0,0.00016149,2]
[395153353,1764486642896,-250.0,0.00016149,2]
[395153354,1764486642906,-8000.0,0.00016149,2]
[395153355,1764486642915,-194.99852451,0.00016149,2]
[395153356,1764486642924,-250.0,0.00016149,2]
[395153357,1764486642934,-8000.0,0.00016149,2]
[395153358,1764486642943,-250.0,0.00016149,2]
[395153359,1764486642952,-250.0,0.00016149,2]
[395153360,1764486642961,-8000.0,0.00016149,2]
[395153361,1764486642971,-620.0,0.00016149,2]
[395153362,1764486642980,-533.88981491,0.00016149,2]
[395153363,1764486642989,-250.0,0.00016149,2]
[395153364,1764486642998,-8000.0,0.00016149,2]
[395153365,1764486643008,-8000.0,0.00016149,2]
[395153366,1764486643017,-250.0,0.00016149,2]
[395153367,1764486643026,-8000.0,0.00016149,2]
[395153368,1764486643036,-207.60760368,0.00016149,2]
[395153369,1764486643045,-8000.0,0.00016149,2]
[395153370,1764486643054,-8000.0,0.00016149,2]
[395153371,1764486643064,-151.0,0.00016149,2]
[395153372,1764486643074,-8000.0,0.00016149,2]
[395153373,1764486643083,-160.0,0.00016149,2]
[395153374,1764486643092,-8000.0,0.00016149,2]
[395153375,1764486643102,-197.60270261,0.00016149,2]
[395153376,1764486643111,-976.88386487,0.00016149,2]
[395153377,1764486643121,-1000.0,0.00016149,2]
[395153378,1764486643134,-1000.0,0.00016149,2]
[395153379,1764486643143,-1000.0,0.00016149,2]
[395153380,1764486643153,-1000.0,0.00016149,2]
[395153381,1764486643162,-1000.0,0.00016149,2]
[395153382,1764486643172,-500.0,0.00016149,2]
[395153383,1764486643180,-1000.0,0.00016149,2]
[395153385,1764486643190,-500.0,0.00016149,2]
[395153387,1764486643199,-1000.0,0.00016149,2]
[395153389,1764486643208,-151.0,0.00016149,2]
[395153390,1764486643217,-500.0,0.00016149,2]
[395153391,1764486643227,-1000.0,0.00016149,2]
[395153392,1764486643236,-151.0,0.00016149,2]
[395153393,1764486643248,-500.0,0.00016149,2]
[395153394,1764486643258,-1000.0,0.00016149,2]
[395153395,1764486643267,-151.0,0.00016149,2]
[395153396,1764486643276,-500.0,0.00016149,2]
[395153397,1764486643286,-1000.0,0.00016149,2]
[395153398,1764486643295,-151.0,0.00016149,2]
[395153399,1764486643304,-500.0,0.00016149,2]
[395153400,1764486643313,-1000.0,0.00016149,2]
[395153401,1764486643323,-684.39182428,0.00016149,2]
[395153402,1764486643331,-500.0,0.00016149,2]
[395153403,1764486643341,-500.0,0.00016149,2]
[395153404,1764486643350,-151.0,0.00016149,2]
[395153405,1764486643359,-1000.0,0.00016149,2]
[395153406,1764486643368,-250.0,0.00016149,2]
[395153407,1764486643378,-500.0,0.00016149,2]
[395153408,1764486643387,-500.0,0.00016149,2]
[395153409,1764486643396,-151.0,0.00016149,2]
[395153410,1764486643406,-1000.0,0.00016149,2]
[395153412,1764486643415,-250.0,0.00016149,2]
[395153413,1764486643424,-500.0,0.00016149,2]
[395153414,1764486643433,-257.91778498,0.00016149,2]
[395153415,1764486643442,-1000.0,0.00016149,2]
[395153416,1764486643451,-151.0,0.00016149,2]
[395153417,1764486643460,-250.0,0.00016149,2]
[395153418,1764486643470,-500.0,0.00016149,2]
[395153419,1764486643480,-500.0,0.00016149,2]
[395153420,1764486643491,-250.0,0.00016149,2]
[395153421,1764486643501,-151.0,0.00016149,2]
[395153422,1764486643510,-500.0,0.00016149,2]
[395153423,1764486643519,-500.0,0.00016149,2]
[395153424,1764486643528,-151.0,0.00016149,2]
[395153425,1764486643537,-250.0,0.00016149,2]
[395153426,1764486643547,-151.0,0.00016149,2]
[395153427,1764486643560,-500.0,0.00016149,2]
[395153428,1764486643569,-153.33020612,0.00016149,2]
[395153429,1764486643578,-250.0,0.00016149,2]
[395153430,1764486643587,-500.0,0.00016149,2]
[395153431,1764486643596,-151.0,0.00016149,2]
[395153432,1764486643605,-500.0,0.00016149,2]
[395153433,1764486643614,-500.0,0.00016149,2]
[395153434,1764486643623,-151.0,0.00016149,2]
[395153435,1764486643633,-250.0,0.00016149,2]
[395153436,1764486643642,-500.0,0.00016149,2]
[395153437,1764486643651,-500.0,0.00016149,2]
[395153438,1764486643661,-151.0,0.00016149,2]
[395153439,1764486643670,-250.0,0.00016149,2]
[395153440,1764486643680,-500.0,0.00016149,2]
[395153441,1764486643689,-250.0,0.00016149,2]
[395153442,1764486643699,-500.0,0.00016149,2]
[395153443,1764486643708,-250.0,0.00016149,2]
[395153445,1764486643718,-500.0,0.00016149,2]
[395153446,1764486643727,-250.0,0.00016149,2]
[395153447,1764486643736,-500.0,0.00016149,2]
[395153448,1764486643745,-500.0,0.00016149,2]
[395153449,1764486643755,-242.76972511,0.00016149,2]
[395153450,1764486643764,-500.0,0.00016149,2]
[395153451,1764486643773,-500.0,0.00016149,2]
[395153452,1764486643782,-500.0,0.00016149,2]
[395153453,1764486643792,-500.0,0.00016149,2]
[395153454,1764486643801,-500.0,0.00016149,2]
[395153455,1764486643811,-500.0,0.00016149,2]
[395153456,1764486643829,-500.0,0.00016149,2]
[395153457,1764486643839,-500.0,0.00016149,2]
[395153458,1764486643850,-500.0,0.00016149,2]
[395153459,1764486643859,-250.0,0.00016149,2]
[395153460,1764486643870,-500.0,0.00016149,2]
[395153461,1764486643882,-300.0,0.00016149,2]
[395153462,1764486643902,-250.0,0.00016149,2]
[395153463,1764486643920,-500.0,0.00016149,2]
[395153464,1764486643930,-250.0,0.00016149,2]
[395153465,1764486643941,-500.0,0.00016149,2]
[395153466,1764486643951,-1000.0,0.00016149,2]
[395153467,1764486643961,-250.0,0.00016149,2]
[395153468,1764486643970,-514.58566631,0.00016149,2]
[395153469,1764486643979,-1000.0,0.00016149,2]
[395153470,1764486643988,-250.0,0.00016149,2]
[395153472,1764486643998,-250.0,0.00016149,2]
[395153474,1764486644007,-1000.0,0.00016149,2]
[395153476,1764486644016,-250.0,0.00016149,2]
[395153478,1764486644025,-250.0,0.00016149,2]
[395153480,1764486644035,-1000.0,0.00016149,2]
[395153482,1764486644044,-250.0,0.00016149,2]
[395153484,1764486644053,-250.0,0.00016149,2]
[395153486,1764486644062,-1000.0,0.00016149,2]
[395153488,1764486644071,-250.0,0.00016149,2]
[395153490,1764486644080,-250.0,0.00016149,2]
[395153492,1764486644089,-1000.0,0.00016149,2]
[395153494,1764486644099,-250.0,0.00016149,2]
[395153496,1764486644107,-250.0,0.00016149,2]
[395153498,1764486644116,-1000.0,0.00016149,2]
[395153500,1764486644125,-250.0,0.00016149,2]
[395153502,1764486644134,-1000.0,0.00016149,2]
[395153504,1764486644143,-250.0,0.00016149,2]
[395153505,1764486644153,-1000.0,0.00016149,2]
[395153506,1764486644162,-250.0,0.00016149,2]
[395153507,1764486644172,-1000.0,0.00016149,2]
[395153509,1764486644181,-250.0,0.00016149,2]
[395153511,1764486644190,-1000.0,0.00016149,2]
[395153512,1764486644199,-1000.0,0.00016149,2]
[395153513,1764486644208,-1000.0,0.00016149,2]
[395153514,1764486644217,-500.0,0.00016149,2]
[395153515,1764486644226,-500.0,0.00016149,2]
[395153516,1764486644235,-500.0,0.00016149,2]
[395153517,1764486644244,-500.0,0.00016149,2]
[395153518,1764486644254,-500.0,0.00016149,2]
[395153519,1764486644263,-500.0,0.00016149,2]
[395153520,1764486644273,-500.0,0.00016149,2]
[395153521,1764486644283,-500.0,0.00016149,2]
[395153522,1764486644292,-500.0,0.00016149,2]
[395153523,1764486644302,-500.0,0.00016149,2]
[395153524,1764486644312,-500.0,0.00016149,2]
[395153525,1764486644322,-500.0,0.00016149,2]
[395153526,1764486644332,-500.0,0.00016149,2]
[395153527,1764486644341,-151.0,0.00016165,2]
[395153528,1764486644351,-483.0,0.00016165,2]
[395153529,1764486644360,-11902.982583,0.00016168,2]
[395153530,1764486644370,-150.0,0.00016171,2]
[395153531,1764486644379,-150.0,0.00016194,2]
[395153532,1764486644387,-150.0,0.00016202,2]
[395153533,1764486644398,-150.0,0.00016222,2]
[395153534,1764486644407,-587.0,0.00016226,2]
[395153535,1764486644415,-587.0,0.00016226,2]
[395153536,1764486644426,-150.0,0.00016239,2]
[395153537,1764486644435,-882.62,0.00016247,2]
[395153538,1764486644444,-729.0,0.00016266,2]
[395153539,1764486644453,-150.0,0.00016279,2]
[395153540,1764486644461,-1000.0,0.000163,2]
[395153541,1764486644471,-483.0,0.00016302,2]
[395153542,1764486644482,-150.0,0.00016307,2]
[395153543,1764486644491,-150.0,0.00016307,2]
[395153544,1764486644501,-150.0,0.00016307,2]
[395153545,1764486644510,-150.0,0.00016307,2]
[395153546,1764486644519,-150.0,0.00016333,2]
[395153547,1764486644529,-161.58312631,0.00016336,2]
[395153548,1764486644538,-985.43015279,0.00016338,2]
[395153549,1764486644548,-2351.0,0.00016341,2]
[395153550,1764486644559,-150.0,0.00016375,2]
[395153551,1764486644568,-150.0,0.00016392,2]
[395153552,1764486644577,-729.0,0.00016403,2]
[395153553,1764486644587,-150.0,0.0001642,2]
[395153554,1764486644596,-150.0,0.0001642,2]
[395153555,1764486644605,-500.0,0.00016438,2]
[395153556,1764486644614,-500.0,0.00016438,2]
[395153557,1764486644623,-500.0,0.00016438,2]
[395153558,1764486644632,-500.0,0.00016438,2]
[395153559,1764486644642,-500.0,0.00016438,2]
[395153560,1764486644651,-500.0,0.00016438,2]
[395153561,1764486644660,-500.0,0.00016438,2]
[395153562,1764486644669,-500.0,0.00016438,2]
[395153563,1764486644681,-500.0,0.00016438,2]
[395153564,1764486644690,-500.0,0.00016438,2]
[395153565,1764486644699,-500.0,0.00016438,2]
[395153566,1764486644708,-500.0,0.00016438,2]
[395153567,1764486644725,-500.0,0.00016438,2]
[395153568,1764486644740,-500.0,0.00016438,2]
[395153569,1764486644755,-500.0,0.00016438,2]
[395153570,1764486644771,-500.0,0.00016438,2]
[395153571,1764486644789,-500.0,0.00016438,2]
[395153572,1764486644803,-500.0,0.00016438,2]
[395153573,1764486644816,-500.0,0.00016438,2]
[395153574,1764486644832,-500.0,0.00016438,2]
[395153575,1764486644848,-500.0,0.00016438,2]
[395153576,1764486644865,-500.0,0.00016438,2]
[395153577,1764486644882,-500.0,0.00016438,2]
[395153578,1764486644898,-500.0,0.00016438,2]
[395153579,1764486644913,-500.0,0.00016438,2]
[395153580,1764486644930,-500.0,0.00016438,2]
[395153581,1764486644945,-500.0,0.00016438,2]
[395153582,1764486644957,-500.0,0.00016438,2]
[395153583,1764486644971,-242.79221301,0.00016438,2]
[395153584,1764486644986,-500.0,0.00016438,2]
[395153585,1764486644999,-500.0,0.00016438,2]
[395153586,1764486645016,-500.0,0.00016438,2]
[395153587,1764486645028,-500.0,0.00016438,2]
[395153588,1764486645041,-13923.73,0.00016438,2]
[395153589,1764486645055,-800.0,0.00016438,2]
[395153590,1764486645069,-483.0,0.00016439,2]
[395153591,1764486645082,-150.0,0.00016443,2]
[395153592,1764486645096,-150.0,0.00016464,2]
[395153593,1764486645110,-150.0,0.00016477,2]
[395153594,1764486645123,-150.0,0.00016477,2]
[395153595,1764486645136,-9938.06470837,0.00016479,2]
[395153596,1764486645151,-150.0,0.00016511,2]
[395153597,1764486645165,-916.80275832,0.00016521,2]
[395153598,1764486645188,-501.57760606,0.00016521,2]
[395153599,1764486645201,-1000.0,0.00016521,2]
[395153600,1764486645214,-1000.745763,0.00016521,2]
[395153601,1764486645227,-1001.35128612,0.00016521,2]
[395153602,1764486645240,-1000.0,0.00016521,2]
[395153603,1764486645253,-1000.0,0.00016521,2]
[395153604,1764486645266,-512.61581703,0.00016521,2]
[395153605,1764486645280,-696.8967906,0.00016521,2]
[395153606,1764486645293,-360.33354768,0.00016521,2]
[395153607,1764486645307,-1018.43163791,0.00016521,2]
[395153608,1764486645320,-1000.0,0.00016521,2]
[395153609,1764486645334,-957.90842426,0.00016521,2]
[395153610,1764486645347,-1000.0,0.00016521,2]
[395153611,1764486645361,-193.94586418,0.00016521,2]
[395153612,1764486645376,-882.62,0.00016521,2]
[395153613,1764486645389,-150.0,0.00016533,2]
[395153614,1764486645402,-11902.982583,0.00016534,2]
[395153615,1764486645416,-729.0,0.0001654,2]
[395153616,1764486645429,-275.99820203,0.00016544,2]
[395153617,1764486645443,-150.0,0.00016562,2]
[395153618,1764486645456,-150.0,0.00016562,2]
[395153619,1764486645469,-150.0,0.00016562,2]
[395153620,1764486645485,-150.0,0.00016562,2]
[395153621,1764486645498,-500.0,0.00016575,2]
[395153622,1764486645511,-483.0,0.00016576,2]
[395153623,1764486645524,-150.0,0.00016579,2]
[395153624,1764486645539,-150.0,0.00016594,2]
[395153625,1764486645553,-1000.0,0.000166,2]
[395153626,1764486645566,-1095.0,0.000166,2]
[395153627,1764486645579,-150.0,0.00016647,2]
[395153628,1764486645592,-150.0,0.00016647,2]
[395153629,1764486645605,-150.0,0.00016647,2]
[395153630,1764486645618,-150.0,0.00016647,2]
[395153631,1764486645631,-1025.96265438,0.0001666,2]
[395153632,1764486645645,-1092.93249831,0.0001666,2]
[395153633,1764486645658,-1070.18200175,0.0001666,2]
[395153634,1764486645671,-1136.22021917,0.0001666,2]
[395153635,1764486645684,-1115.62999251,0.0001666,2]
[395153636,1764486645697,-729.0,0.00016677,2]
[395153637,1764486645710,-241.19087969,0.00016697,2]
[395153638,1764486645723,-151.0,0.00016697,2]
[395153639,1764486645737,-642.94,0.00016697,2]
[395153640,1764486645750,-553.64373807,0.00016697,2]
[395153641,1764486645763,-1000.0,0.00016697,2]
[395153642,1764486645777,-150.0,0.00016703,2]
[395153643,1764486645790,-500.0,0.00016712,2]
[395153644,1764486645803,-237.3246584,0.00016713,2]
[395153645,1764486645815,-483.0,0.00016713,2]
[395153646,1764486645828,-150.0,0.00016715,2]
[395153647,1764486645841,-217.18150158,0.00016716,2]
[395153648,1764486645854,-150.0,0.00016725,2]
[395153649,1764486645867,-150.0,0.00016732,2]
[395153650,1764486645880,-150.0,0.0001676,2]
[395153651,1764486645894,-150.0,0.00016782,2]
[395153652,1764486645907,-882.62,0.00016795,2]
[395153653,1764486645920,-734.22692758,0.00016814,2]
[395153654,1764486645933,-150.0,0.00016816,2]
[395153655,1764486645947,-150.0,0.00016816,2]
[395153656,1764486645961,-208.75,0.00016832,2]
[395153657,1764486645974,-150.0,0.00016845,2]
[395153658,1764486645987,-500.0,0.00016849,2]
[395153659,1764486646000,-487.05232631,0.0001685,2]
[395153660,1764486646013,-150.0,0.0001685,2]
[395153661,1764486646027,-150.0,0.00016856,2]
[395153662,1764486646040,-200.0,0.00016863,2]
[395153663,1764486646053,-200.0,0.00016864,2]
[395153664,1764486646066,-200.0,0.00016864,2]